fUST/lending_fUST_20250702
["ID","MTS","AMOUNT","RATE_DAILY","PERIOD"]
[369047324,1751445044481,-460.0,0.00016438,2]
[369047326,1751445044491,-460.0,0.00016438,2]
[369047328,1751445044500,-151.0,0.00016438,2]
[369047330,1751445044511,-500.0,0.00016438,2]
[369047332,1751445044520,-460.0,0.00016438,2]
[369047334,1751445044530,-500.0,0.00016438,2]
[369047336,1751445044539,-500.0,0.00016438,2]
[369047337,1751445044549,-500.0,0.00016438,2]
[369047339,1751445044559,-500.0,0.00016438,2]
[369047341,1751445044569,-500.0,0.00016438,2]
[369047344,1751445044581,-500.0,0.00016438,2]
[369047346,1751445044591,-460.0,0.00016438,2]
[369047348,1751445044601,-500.0,0.00016438,2]
[369047350,1751445044611,-500.0,0.00016438,2]
[369047352,1751445044620,-460.0,0.00016438,2]
[369047353,1751445044629,-500.0,0.00016438,2]
[369047355,1751445044638,-500.0,0.00016438,2]
[369047357,1751445044648,-500.0,0.00016438,2]
[369047359,1751445044657,-460.0,0.00016438,2]
[369047361,1751445044667,-500.0,0.00016438,2]
[369047363,1751445044676,-500.0,0.00016438,2]
[369047365,1751445044685,-151.0,0.00016438,2]
[369047367,1751445044694,-168.59,0.00016438,2]
[369047369,1751445044704,-3087.48,0.00016438,2]
[369047371,1751445044713,-460.0,0.00016438,2]
[369047373,1751445044722,-460.0,0.00016438,2]
[369047375,1751445044731,-460.0,0.00016438,2]
[369047377,1751445044740,-460.0,0.00016438,2]
[369047379,1751445044749,-460.0,0.00016438,2]
[369047382,1751445044759,-460.0,0.00016438,2]
[369047384,1751445044769,-801.86,0.00016438,2]
[369047386,1751445044778,-460.0,0.00016438,2]
[369047388,1751445044788,-460.0,0.00016438,2]
[369047390,1751445044797,-460.0,0.00016438,2]
[369047392,1751445044807,-460.0,0.00016438,2]
[369047394,1751445044817,-460.0,0.00016438,2]
[369047396,1751445044826,-460.0,0.00016438,2]
[369047398,1751445044838,-495.84,0.00016438,2]
[369047399,1751445044847,-460.0,0.00016438,2]
[369047401,1751445044857,-929.01,0.00016438,2]
[369047403,1751445044867,-460.0,0.00016438,2]
[369047405,1751445044876,-460.0,0.00016438,2]
[369047407,1751445044885,-505.94,0.00016438,2]
[369047409,1751445044895,-1000.0,0.00016438,2]
[369047411,1751445044904,-460.0,0.00016438,2]
[369047413,1751445044913,-460.0,0.00016438,2]
[369047415,1751445044923,-3667.71,0.00016438,2]
[369047418,1751445044933,-460.0,0.00016438,2]
[369047420,1751445044943,-500.0,0.00016438,2]
[369047421,1751445044954,-500.0,0.00016438,2]
[369047424,1751445044963,-500.0,0.00016438,2]
[369047425,1751445044972,-500.0,0.00016438,2]
[369047428,1751445044982,-460.0,0.00016438,2]
[369047430,1751445044992,-460.0,0.00016438,2]
[369047432,1751445045001,-460.0,0.00016438,2]
[369047433,1751445045010,-765.47,0.00016438,2]
[369047435,1751445045020,-460.0,0.00016438,2]
[369047438,1751445045029,-460.0,0.00016438,2]
[369047440,1751445045039,-1714.9,0.00016438,2]
[369047441,1751445045048,-460.59315459,0.00016438,2]
[369047443,1751445045057,-1363.74,0.00016438,2]
[369047445,1751445045066,-460.0,0.00016438,2]
[369047447,1751445045076,-460.0,0.00016438,2]
[369047449,1751445045087,-460.0,0.00016438,2]
[369047451,1751445045096,-460.0,0.00016438,2]
[369047453,1751445045105,-460.0,0.00016438,2]
[369047454,1751445045114,-460.0,0.00016438,2]
[369047455,1751445045124,-460.0,0.00016438,2]
[369047456,1751445045133,-460.0,0.00016438,2]
[369047457,1751445045142,-2367.93,0.00016438,2]
[369047458,1751445045152,-273.83418198,0.00016438,2]
[369047459,1751445045161,-732.17,0.00016438,2]
[369047460,1751445045171,-500.0,0.00016438,2]
[369047461,1751445045181,-460.0,0.00016438,2]
[369047462,1751445045190,-460.0,0.00016438,2]
[369047463,1751445045199,-460.0,0.00016438,2]
[369047464,1751445045209,-854.21,0.00016438,2]
[369047465,1751445045218,-460.42122329,0.00016438,2]
[369047466,1751445045228,-849.76,0.00016438,2]
[369047467,1751445045237,-460.0,0.00016438,2]
[369047468,1751445045247,-460.0,0.00016438,2]
[369047469,1751445045256,-460.0,0.00016438,2]
[369047470,1751445045265,-721.5,0.00016438,2]
[369047473,1751445045274,-460.0,0.00016438,2]
[369047476,1751445045283,-460.0,0.00016438,2]
[369047478,1751445045292,-460.0,0.00016438,2]
[369047480,1751445045301,-443.27860545,0.00016438,2]
[369047482,1751445045310,-460.0,0.00016438,2]
[369047485,1751445045320,-1041.46,0.00016438,2]
[369047487,1751445045330,-460.0,0.00016438,2]
[369047489,1751445045339,-460.0,0.00016438,2]
[369047491,1751445045349,-460.0,0.00016438,2]
[369047493,1751445045358,-494.70164064,0.00016438,2]
[369047495,1751445045368,-7003.26,0.00016438,2]
[369047498,1751445045380,-805.0,0.00016438,2]
[369047500,1751445045389,-540.68445243,0.00016438,2]
[369047501,1751445045398,-460.0,0.00016438,2]
[369047504,1751445045408,-460.0,0.00016438,2]
[369047505,1751445045418,-460.0,0.00016438,2]
[369047507,1751445045427,-460.0,0.00016438,2]
[369047510,1751445045437,-460.0,0.00016438,2]
[369047512,1751445045448,-460.0,0.00016438,2]
[369047514,1751445045459,-460.0,0.00016438,2]
[369047516,1751445045468,-460.0,0.00016438,2]
[369047518,1751445045477,-460.0,0.00016438,2]
[369047520,1751445045486,-460.0,0.00016438,2]
[369047522,1751445045495,-460.0,0.00016438,2]
[369047524,1751445045505,-460.0,0.00016438,2]
[369047526,1751445045514,-460.0,0.00016438,2]
[369047528,1751445045523,-504.86727354,0.00016438,2]
[369047530,1751445045532,-500.0,0.00016465,2]
[369047531,1751445045541,-500.0,0.00016465,2]
[369047533,1751445045550,-500.0,0.00016473,2]
[369047535,1751445045560,-500.0,0.00016473,2]
[369047537,1751445045569,-500.0,0.00016473,2]
[369047539,1751445045579,-500.0,0.00016473,2]
[369047541,1751445045587,-502.89649884,0.00016473,2]
[369047543,1751445045599,-500.0,0.00016473,2]
[369047545,1751445045609,-500.0,0.00016473,2]
[369047547,1751445045618,-500.0,0.00016473,2]
[369047549,1751445045627,-500.0,0.00016473,2]
[369047551,1751445045637,-481.68474319,0.00016473,2]
[369047553,1751445045647,-503.44186277,0.00016473,2]
[369047555,1751445045656,-588.02300013,0.00016473,2]
[369047557,1751445045666,-503.03573284,0.00016473,2]
[369047559,1751445045675,-500.0,0.00016473,2]
[369047561,1751445045684,-500.0,0.00016473,2]
[369047563,1751445045694,-506.35427865,0.00016473,2]
[369047565,1751445045703,-500.0,0.00016473,2]
[369047567,1751445045712,-500.0,0.00016473,2]
[369047569,1751445045722,-500.0,0.00016473,2]
[369047571,1751445045731,-500.0,0.00016473,2]
[369047573,1751445045740,-500.0,0.00016473,2]
[369047575,1751445045750,-500.0,0.00016473,2]
[369047577,1751445045759,-500.0,0.00016473,2]
[369047579,1751445045768,-500.0,0.00016473,2]
[369047581,1751445045778,-500.0,0.00016473,2]
[369047583,1751445045787,-500.0,0.00016473,2]
[369047585,1751445045796,-500.0,0.00016473,2]
[369047587,1751445045805,-500.97948182,0.00016473,2]
[369047589,1751445045815,-500.0,0.00016473,2]
[369047591,1751445045824,-500.0,0.00016473,2]
[369047593,1751445045834,-500.0,0.00016473,2]
[369047595,1751445045843,-716.195754,0.00016483,2]
[369047597,1751445045853,-558.26711213,0.00016493,2]
[369047599,1751445045863,-500.0,0.00016493,2]
[369047601,1751445045872,-500.0,0.0001652,2]
[369047603,1751445045882,-1470.52784876,0.00016529,2]
[369047605,1751445045891,-155.70493686,0.00016538,2]
[369047607,1751445045901,-500.0,0.00016548,2]
[369047609,1751445045910,-500.0,0.00016575,2]
[369047611,1751445045919,-500.0,0.00016602,2]
[369047613,1751445045929,-1499.58546086,0.00016629,2]
[369047615,1751445045938,-500.0,0.0001663,2]
[369047617,1751445045947,-500.0,0.00016657,2]
[369047619,1751445045956,-500.0,0.00016685,2]
[369047621,1751445045967,-500.0,0.00016711,2]
[369047623,1751445045976,-500.0,0.00016711,2]
[369047625,1751445045986,-246.3981258,0.00016711,2]
[369047627,1751445045995,-2614.98,0.00016711,2]
[369047629,1751445046005,-2614.98,0.00016711,2]
[369047631,1751445046015,-2614.98,0.00016711,2]
[369047633,1751445046024,-2614.98,0.00016711,2]
[369047635,1751445046034,-2614.98,0.00016711,2]
[369047637,1751445046043,-2614.98,0.00016711,2]
[369047639,1751445046053,-2614.98,0.00016711,2]
[369047641,1751445046062,-500.0,0.00016712,2]
[369047644,1751445046072,-460.0,0.00016712,2]
[369047645,1751445046083,-460.0,0.00016712,2]
[369047647,1751445046091,-543.14498402,0.00016712,2]
[369047649,1751445046101,-460.0,0.00016712,2]
[369047651,1751445046110,-460.0,0.00016712,2]
[369047653,1751445046120,-460.0,0.00016712,2]
[369047655,1751445046130,-460.0,0.00016712,2]
[369047658,1751445046140,-460.0,0.00016712,2]
[369047659,1751445046149,-460.0,0.00016712,2]
[369047661,1751445046159,-460.0,0.00016712,2]
[369047663,1751445046169,-460.0,0.00016712,2]
[369047666,1751445046180,-460.0,0.00016712,2]
[369047668,1751445046190,-572.51930437,0.00016712,2]
[369047670,1751445046200,-460.0,0.00016712,2]
[369047672,1751445046209,-480.97968229,0.00016712,2]
[369047674,1751445046219,-460.0,0.00016712,2]
[369047676,1751445046228,-460.0,0.00016712,2]
[369047678,1751445046238,-498.25,0.00016712,2]
[369047680,1751445046248,-460.0,0.00016712,2]
[369047682,1751445046258,-191.81643829,0.00016712,2]
[369047684,1751445046267,-460.0,0.00016712,2]
[369047686,1751445046277,-460.0,0.00016712,2]
[369047688,1751445046286,-460.0,0.00016712,2]
[369047690,1751445046296,-308.14577533,0.00016712,2]
[369047692,1751445046305,-460.0,0.00016712,2]
[369047694,1751445046315,-460.0,0.00016712,2]
[369047696,1751445046324,-460.0,0.00016712,2]
[369047698,1751445046337,-463.59323972,0.00016712,2]
[369047700,1751445046346,-460.0,0.00016712,2]
[369047702,1751445046355,-460.0,0.00016712,2]
[369047704,1751445046365,-214.98033609,0.00016712,2]
[369047706,1751445046378,-460.0,0.00016712,2]
[369047707,1751445046387,-463.11819125,0.00016712,2]
[369047709,1751445046396,-462.31688697,0.00016712,2]
[369047712,1751445046405,-460.0,0.00016712,2]
[369047714,1751445046415,-460.0,0.00016712,2]
[369047715,1751445046424,-460.0,0.00016712,2]
[369047717,1751445046433,-222.6890901,0.00016712,2]
[369047719,1751445046442,-460.0,0.00016712,2]
[369047722,1751445046452,-460.0,0.00016712,2]
[369047724,1751445046460,-460.0,0.00016712,2]
[369047726,1751445046470,-460.0,0.00016712,2]
[369047727,1751445046479,-460.0,0.00016712,2]
[369047730,1751445046489,-460.0,0.00016712,2]
[369047732,1751445046498,-460.0,0.00016712,2]
[369047733,1751445046507,-460.0,0.00016712,2]
[369047735,1751445046516,-460.0,0.00016712,2]
[369047737,1751445046526,-460.0,0.00016712,2]
[369047739,1751445046537,-460.0,0.00016712,2]
[369047741,1751445046546,-639.06,0.00016712,2]
[369047743,1751445046555,-460.0,0.00016712,2]
[369047745,1751445046564,-460.0,0.00016712,2]
[369047747,1751445046574,-460.0,0.00016712,2]
[369047749,1751445046583,-460.0,0.00016712,2]
[369047751,1751445046593,-323.04567807,0.00016712,2]
[369047753,1751445046602,-460.0,0.00016712,2]
[369047755,1751445046611,-460.0,0.00016712,2]
[369047757,1751445046621,-460.0,0.00016712,2]
[369047759,1751445046630,-460.0,0.00016712,2]
[369047761,1751445046639,-460.0,0.00016712,2]
[369047763,1751445046648,-460.0,0.00016712,2]
[369047765,1751445046658,-460.0,0.00016712,2]
[369047767,1751445046667,-460.0,0.00016712,2]
[369047769,1751445046676,-460.0,0.00016712,2]
[369047771,1751445046686,-460.0,0.00016712,2]
[369047773,1751445046695,-460.0,0.00016712,2]
[369047776,1751445046705,-460.0,0.00016712,2]
[369047778,1751445046714,-460.0,0.00016712,2]
[369047780,1751445046723,-460.0,0.00016712,2]
[369047782,1751445046731,-460.0,0.00016712,2]
[369047784,1751445046741,-460.0,0.00016712,2]
[369047786,1751445046750,-460.0,0.00016712,2]
[369047788,1751445046760,-460.0,0.00016712,2]
[369047789,1751445046769,-460.0,0.00016712,2]
[369047791,1751445046779,-460.0,0.00016712,2]
[369047794,1751445046788,-460.0,0.00016712,2]
[369047795,1751445046798,-596.90730715,0.00016712,2]
[369047797,1751445046807,-876.29,0.00016712,2]
[369047799,1751445046816,-288.37726092,0.00016712,2]
[369047801,1751445046825,-460.0,0.00016712,2]
[369047803,1751445046835,-460.0,0.00016712,2]
[369047805,1751445046844,-459.94185986,0.00016712,2]
[369047808,1751445046854,-642.52,0.00016712,2]
[369047824,1751445046996,-332.15722067,0.00016712,2]
[369047826,1751445047006,-460.0,0.00016712,2]
[369047828,1751445047016,-316.71196474,0.00016712,2]
[369047831,1751445047026,-340.15638719,0.00016712,2]
[369047833,1751445047035,-460.0,0.00016712,2]
[369047834,1751445047045,-460.0,0.00016712,2]
[369047836,1751445047054,-460.0,0.00016712,2]
[369047838,1751445047064,-460.0,0.00016712,2]
[369047841,1751445047073,-460.0,0.00016712,2]
[369047843,1751445047084,-460.0,0.00016712,2]
[369047845,1751445047093,-460.0,0.00016712,2]
[369047847,1751445047102,-460.0,0.00016712,2]
[369047849,1751445047111,-460.0,0.00016712,2]
[369047850,1751445047121,-460.0,0.00016712,2]
[369047852,1751445047130,-460.0,0.00016712,2]
[369047854,1751445047140,-460.0,0.00016712,2]
[369047856,1751445047149,-460.0,0.00016712,2]
[369047859,1751445047159,-460.0,0.00016712,2]
[369047861,1751445047168,-460.0,0.00016712,2]
[369047863,1751445047178,-460.0,0.00016712,2]
[369047864,1751445047187,-460.0,0.00016712,2]
[369047867,1751445047196,-460.0,0.00016712,2]
[369047868,1751445047207,-460.0,0.00016712,2]
[369047870,1751445047216,-460.0,0.00016712,2]
[369047873,1751445047226,-460.0,0.00016712,2]
[369047875,1751445047236,-460.0,0.00016712,2]
[369047877,1751445047245,-460.0,0.00016712,2]
[369047879,1751445047254,-460.0,0.00016712,2]
[369047881,1751445047263,-460.0,0.00016712,2]
[369047883,1751445047272,-460.0,0.00016712,2]
[369047884,1751445047282,-460.0,0.00016712,2]
[369047887,1751445047291,-476.33962863,0.00016712,2]
[369047889,1751445047301,-460.0,0.00016712,2]
[369047891,1751445047310,-460.0,0.00016712,2]
[369047893,1751445047319,-614.95,0.00016712,2]
[369047894,1751445047328,-460.0,0.00016712,2]
[369047897,1751445047339,-460.0,0.00016712,2]
[369047899,1751445047348,-980.93,0.00016712,2]
[369047900,1751445047358,-500.0,0.00016712,2]
[369047903,1751445047374,-460.0,0.00016712,2]
[369047904,1751445047388,-460.0,0.00016712,2]
[369047906,1751445047398,-460.0,0.00016712,2]
[369047908,1751445047407,-460.0,0.00016712,2]
[369047910,1751445047416,-751.48,0.00016712,2]
[369047912,1751445047426,-462.11734744,0.00016712,2]
[369047915,1751445047436,-460.0,0.00016712,2]
[369047916,1751445047445,-195.71904248,0.00016712,2]
[369047918,1751445047454,-603.86435399,0.00016712,2]
[369047920,1751445047463,-460.0,0.00016712,2]
[369047923,1751445047473,-460.0,0.00016712,2]
[369047924,1751445047482,-460.0,0.00016712,2]
[369047926,1751445047491,-460.0,0.00016712,2]
[369047929,1751445047501,-460.0,0.00016712,2]
[369047931,1751445047509,-460.0,0.00016712,2]
[369047933,1751445047518,-460.0,0.00016712,2]
[369047935,1751445047527,-460.0,0.00016712,2]
[369047937,1751445047537,-460.0,0.00016712,2]
[369047939,1751445047546,-460.0,0.00016712,2]
[369047941,1751445047555,-460.0,0.00016712,2]
[369047943,1751445047564,-460.0,0.00016712,2]
[369047945,1751445047573,-460.0,0.00016712,2]
[369047947,1751445047583,-469.98,0.00016712,2]
[369047949,1751445047594,-462.83465594,0.00016712,2]
[369047951,1751445047603,-460.0,0.00016712,2]
[369047953,1751445047613,-168.47836314,0.00016712,2]
[369047955,1751445047622,-460.0,0.00016712,2]
[369047957,1751445047631,-460.0,0.00016712,2]
[369047959,1751445047640,-460.0,0.00016712,2]
[369047961,1751445047649,-460.0,0.00016712,2]
[369047963,1751445047658,-461.95759357,0.00016712,2]
[369047965,1751445047668,-460.0,0.00016712,2]
[369047967,1751445047678,-460.0,0.00016712,2]
[369047969,1751445047687,-460.0,0.00016712,2]
[369047971,1751445047696,-460.0,0.00016712,2]
[369047973,1751445047705,-460.0,0.00016712,2]
[369047975,1751445047714,-460.0,0.00016712,2]
[369047977,1751445047723,-363.41824458,0.00016712,2]
[369047979,1751445047733,-460.0,0.00016712,2]
[369047981,1751445047742,-460.0,0.00016712,2]
[369047983,1751445047751,-472.34768269,0.00016712,2]
[369047985,1751445047760,-460.0,0.00016712,2]
[369047987,1751445047769,-460.0,0.00016712,2]
[369047989,1751445047779,-391.59444117,0.00016712,2]
[369047991,1751445047789,-460.0,0.00016712,2]
[369047993,1751445047798,-460.0,0.00016712,2]
[369047995,1751445047806,-460.0,0.00016712,2]
[369047997,1751445047816,-460.0,0.00016712,2]
[369047999,1751445047825,-460.0,0.00016712,2]
[369048001,1751445047835,-170.53395805,0.00016712,2]
[369048003,1751445047845,-460.0,0.00016712,2]
[369048004,1751445047854,-505.40666928,0.00016712,2]
[369048005,1751445047863,-460.0,0.00016712,2]
[369048006,1751445047872,-325.75108006,0.00016712,2]
[369048007,1751445047881,-460.0,0.00016712,2]
[369048008,1751445047890,-460.0,0.00016712,2]
[369048009,1751445047899,-460.0,0.00016712,2]
[369048010,1751445047909,-461.39607458,0.00016712,2]
[369048011,1751445047918,-460.0,0.00016712,2]
[369048012,1751445047927,-460.0,0.00016712,2]
[369048013,1751445047936,-460.0,0.00016712,2]
[369048014,1751445047946,-460.0,0.00016712,2]
[369048015,1751445047955,-460.0,0.00016712,2]
[369048016,1751445047965,-460.0,0.00016712,2]
[369048017,1751445047975,-460.0,0.00016712,2]
[369048018,1751445047984,-460.0,0.00016712,2]
[369048019,1751445047994,-460.0,0.00016712,2]
[369048020,1751445048003,-460.0,0.00016712,2]
[369048021,1751445048012,-476.11,0.00016712,2]
[369048022,1751445048022,-398.59482959,0.00016712,2]
[369048023,1751445048031,-460.0,0.00016712,2]
[369048024,1751445048041,-460.0,0.00016712,2]
[369048025,1751445048051,-460.0,0.00016712,2]
[369048026,1751445048060,-460.0,0.00016712,2]
[369048027,1751445048070,-641.61,0.00016712,2]
[369048028,1751445048080,-460.0,0.00016712,2]
[369048029,1751445048090,-460.0,0.00016712,2]
[369048030,1751445048100,-460.0,0.00016712,2]
[369048031,1751445048109,-460.0,0.00016712,2]
[369048032,1751445048119,-1766.89,0.00016712,2]
[369048033,1751445048128,-460.0,0.00016712,2]
[369048034,1751445048138,-460.0,0.00016712,2]
[369048035,1751445048148,-460.0,0.00016712,2]
[369048036,1751445048158,-460.0,0.00016712,2]
[369048037,1751445048168,-504.33974533,0.00016712,2]
[369048038,1751445048178,-460.0,0.00016712,2]
[369048039,1751445048188,-460.0,0.00016712,2]
[369048040,1751445048198,-460.0,0.00016712,2]
[369048041,1751445048207,-460.0,0.00016712,2]
[369048042,1751445048217,-826.15,0.00016712,2]
[369048043,1751445048226,-591.35395913,0.00016712,2]
[369048044,1751445048236,-460.0,0.00016712,2]
[369048045,1751445048246,-460.0,0.00016712,2]
[369048046,1751445048256,-461.51866639,0.00016712,2]
[369048047,1751445048266,-460.0,0.00016712,2]
[369048048,1751445048276,-460.0,0.00016712,2]
[369048049,1751445048285,-500.0,0.00016712,2]
[369048050,1751445048294,-460.0,0.00016712,2]
[369048051,1751445048304,-462.54361352,0.00016712,2]
[369048052,1751445048314,-460.0,0.00016712,2]
[369048053,1751445048323,-1047.3,0.00016712,2]
[369048054,1751445048333,-460.0,0.00016712,2]
[369048055,1751445048344,-460.0,0.00016712,2]
[369048056,1751445048353,-460.0,0.00016712,2]
[369048057,1751445048362,-460.0,0.00016712,2]
[369048058,1751445048373,-502.52276853,0.00016712,2]
[369048059,1751445048382,-978.89,0.00016712,2]
[369048060,1751445048392,-460.0,0.00016712,2]
[369048061,1751445048401,-460.0,0.00016712,2]
[369048062,1751445048410,-460.0,0.00016712,2]
[369048063,1751445048420,-496.66,0.00016712,2]
[369048064,1751445048430,-460.0,0.00016712,2]
[369048065,1751445048439,-460.0,0.00016712,2]
[369048066,1751445048448,-462.29818165,0.00016712,2]
[369048067,1751445048458,-398.81154836,0.00016712,2]
[369048068,1751445048467,-2133.99,0.00016712,2]
[369048069,1751445048477,-460.0,0.00016712,2]
[369048070,1751445048486,-460.0,0.00016712,2]
[369048071,1751445048496,-1265.38,0.00016712,2]
[369048072,1751445048505,-727.25,0.00016712,2]
[369048073,1751445048515,-539.69,0.00016712,2]
[369048074,1751445048525,-564.31115602,0.00016712,2]
[369048075,1751445048534,-460.0,0.00016712,2]
[369048076,1751445048544,-1897.91,0.00016712,2]
[369048077,1751445048553,-377.9158847,0.00016712,2]
[369048078,1751445048562,-460.0,0.00016712,2]
[369048079,1751445048572,-460.0,0.00016712,2]
[369048080,1751445048582,-460.0,0.00016712,2]
[369048081,1751445048591,-577.38,0.00016712,2]
[369048082,1751445048601,-460.0,0.00016712,2]
[369048083,1751445048611,-563.23,0.00016712,2]
[369048085,1751445048620,-460.0,0.00016712,2]
[369048087,1751445048629,-460.0,0.00016712,2]
[369048089,1751445048638,-2115.45,0.00016712,2]
[369048091,1751445048648,-516.01,0.00016712,2]
[369048093,1751445048657,-460.0,0.00016712,2]
[369048095,1751445048667,-460.0,0.00016712,2]
[369048097,1751445048676,-460.0,0.00016712,2]
[369048099,1751445048686,-557.01,0.00016712,2]
[369048101,1751445048696,-460.0,0.00016712,2]
[369048103,1751445048705,-460.0,0.00016712,2]
[369048105,1751445048714,-3803.15,0.00016712,2]
[369048107,1751445048724,-185.61132134,0.00016712,2]
[369048109,1751445048733,-460.0,0.00016712,2]
[369048111,1751445048743,-460.0,0.00016712,2]
[369048113,1751445048752,-444.56203615,0.00016712,2]
[369048115,1751445048761,-460.0,0.00016712,2]
[369048117,1751445048770,-460.0,0.00016712,2]
[369048119,1751445048780,-570.02374895,0.00016712,2]
[369048121,1751445048789,-460.0,0.00016712,2]
[369048123,1751445048798,-5111.31,0.00016712,2]
[369048125,1751445048808,-389.56501717,0.00016712,2]
[369048127,1751445048817,-829.34,0.00016712,2]
[369048129,1751445048827,-780.82,0.00016712,2]
[369048131,1751445048836,-460.0,0.00016712,2]
[369048133,1751445048846,-5072.13,0.00016712,2]
[369048135,1751445048854,-460.0,0.00016712,2]
[369048137,1751445048864,-460.0,0.00016712,2]
[369048139,1751445048873,-1087.5,0.00016712,2]
[369048141,1751445048882,-460.0,0.00016712,2]
[369048143,1751445048892,-460.0,0.00016712,2]
[369048145,1751445048901,-460.0,0.00016712,2]
[369048146,1751445048910,-718.56,0.00016712,2]
[369048148,1751445048920,-460.0,0.00016712,2]
[369048150,1751445048929,-460.0,0.00016712,2]
[369048152,1751445048939,-1714.12,0.00016712,2]
[369048154,1751445048948,-460.0,0.00016712,2]
[369048156,1751445048957,-1401.55,0.00016712,2]
[369048158,1751445048968,-460.0,0.00016712,2]
[369048160,1751445048977,-460.0,0.00016712,2]
[369048163,1751445048987,-460.0,0.00016712,2]
[369048165,1751445048997,-460.0,0.00016712,2]
[369048166,1751445049007,-466.46679614,0.00016712,2]
[369048169,1751445049017,-460.0,0.00016712,2]
[369048171,1751445049027,-460.0,0.00016712,2]
[369048172,1751445049037,-669.72,0.00016712,2]
[369048174,1751445049046,-1605.73,0.00016712,2]
[369048177,1751445049057,-461.84,0.00016712,2]
[369048179,1751445049067,-890.25,0.00016712,2]
[369048181,1751445049077,-3517.17,0.00016712,2]
[369048182,1751445049087,-460.0,0.00016712,2]
[369048184,1751445049096,-460.0,0.00016712,2]
[369048186,1751445049106,-460.0,0.00016712,2]
[369048189,1751445049116,-460.0,0.00016712,2]
[369048191,1751445049126,-460.0,0.00016712,2]
[369048193,1751445049136,-460.0,0.00016712,2]
[369048195,1751445049146,-882.98,0.00016712,2]
[369048197,1751445049155,-460.0,0.00016712,2]
[369048198,1751445049165,-759.61,0.00016712,2]
[369048201,1751445049175,-441.785092,0.00016712,2]
[369048202,1751445049185,-570.4,0.00016712,2]
[369048205,1751445049195,-460.0,0.00016712,2]
[369048207,1751445049205,-460.0,0.00016712,2]
[369048209,1751445049215,-1815.57,0.00016712,2]
[369048211,1751445049225,-460.0,0.00016712,2]
[369048213,1751445049235,-460.0,0.00016712,2]
[369048215,1751445049245,-383.08542497,0.00016712,2]
[369048217,1751445049255,-460.0,0.00016712,2]
[369048219,1751445049265,-1073.74,0.00016712,2]
[369048221,1751445049275,-460.0,0.00016712,2]
[369048223,1751445049284,-460.0,0.00016712,2]
[369048225,1751445049294,-460.0,0.00016712,2]
[369048227,1751445049303,-484.61,0.00016712,2]
[369048229,1751445049313,-438.53399985,0.00016712,2]
[369048231,1751445049322,-460.0,0.00016712,2]
[369048233,1751445049333,-460.0,0.00016712,2]
[369048235,1751445049342,-460.0,0.00016712,2]
[369048237,1751445049351,-460.0,0.00016712,2]
[369048239,1751445049362,-1129.77,0.00016712,2]
[369048241,1751445049372,-460.0,0.00016712,2]
[369048243,1751445049382,-460.0,0.00016712,2]